fUSD/lending_fUSD_20240804
["ID","MTS","AMOUNT","RATE_DAILY","PERIOD"]
[334106214,1722769846850,-973.8860602,0.00023955,2]
[334106215,1722769846861,-51.56328039,0.00023955,2]
[334106216,1722769846871,-1141.72329973,0.00024444,2]
[334106217,1722769846882,-6751.79144901,0.00024444,2]
[334106218,1722769846893,-77426.45428755,0.00024444,2]
[334106219,1722769846902,-798.0,0.000245,2]
[334106220,1722769846912,-900.0,0.000245,8]
[334106221,1722769846921,-1057.70326882,0.00024547,2]
[334106222,1722769846930,-171.52767525,0.00024547,2]
[334106223,1722769846940,-178.10219599,0.00024556,2]
[334106224,1722769846950,-178.10219599,0.00024557,2]
[334106225,1722769846959,-7500.0,0.00024557,2]
[334106226,1722769846968,-19125.3111,0.00024557,2]
[334106227,1722769846978,-178.10219599,0.00024557,2]
[334106228,1722769846987,-582.22261808,0.00024557,2]
[334106229,1722769846996,-1057.70326876,0.00024586,2]
[334106230,1722769847005,-171.52767519,0.00024597,2]
[334106231,1722769847015,-256.0,0.000246,2]
[334106232,1722769847024,-256.0,0.000246,2]
[334106233,1722769847033,-2000.0,0.000246,2]
[334106234,1722769847042,-680.0,0.000246,12]
[334106235,1722769847051,-900.0,0.000246,8]
[334106236,1722769847060,-1057.70326876,0.00024625,2]
[334106237,1722769847070,-154.86,0.00024637,2]
[334106238,1722769847079,-28359.734487,0.00024647,5]
[334106239,1722769847088,-212698.008652,0.00024647,5]
[334106240,1722769847098,-45241.70183244,0.00024647,4]
[334106241,1722769847136,-583.30855348,0.00024647,4]
[334106242,1722769847147,-497.75,0.00024647,4]
[334106243,1722769847158,-3874.99916266,0.00024647,4]
[334106244,1722769847171,-4868.33308223,0.00024647,4]
[334106245,1722769847203,-2230.26949157,0.00024647,4]
[334106259,1722770707622,3046470.55759281,0.00011,2]
[334106260,1722770707664,85298.0,0.00011,2]
[334106268,1722770816142,-300.0,0.00010999,2]
[334106269,1722770816165,-409.62937616,0.00010999,2]
[334106270,1722770816194,-22190.37062384,0.00011,2]
[334106277,1722770853592,-400.0,0.000105,3]
[334106278,1722770853615,-388.14841204,0.000109,2]
[334106279,1722770853638,-150.0,0.00010999,2]
[334106280,1722770853661,-6767.08912398,0.00010999,2]
[334106281,1722770853689,-12294.76246398,0.00011,2]
[334106282,1722770854112,-800.0,0.000106,3]
[334106283,1722770854142,-19200.0,0.00011,2]
[334106284,1722770854662,-20000.0,0.00011,2]
[334106285,1722770855172,-20000.0,0.00011,2]
[334106286,1722770855726,-20000.0,0.00011,2]
[334106287,1722770856222,-1300.0,0.000107,3]
[334106288,1722770856251,-18700.0,0.00011,2]
[334106289,1722770856758,-20000.0,0.00011,2]
[334106290,1722770857314,-20000.0,0.00011,2]
[334106291,1722770858059,-20000.0,0.00011,2]
[334106298,1722770911668,-724.311689,0.00010745,2]
[334106299,1722770911690,-1700.0,0.000108,3]
[334106300,1722770911712,-2100.0,0.000109,3]
[334106301,1722770911734,-695.52869872,0.000109,2]
[334106302,1722770911756,-153.68776239,0.000109,2]
[334106303,1722770911783,-14626.47184989,0.00011,2]
[334106304,1722770913281,-20000.0,0.00011,2]
[334106305,1722770913961,-20000.0,0.00011,2]
[334106306,1722770914639,-20000.0,0.00011,2]
[334106307,1722770915320,-20000.0,0.00011,2]
[334106308,1722770916149,-20000.0,0.00011,2]
[334106309,1722770917086,-20000.0,0.00011,2]
[334106310,1722770924565,-15020.8915,0.00011,2]
[334106326,1722771031485,-258.76560804,0.000109,2]
[334106328,1722771031495,-440.24809534,0.000109,2]
[334106331,1722771031509,-23.4377038,0.000109,2]
[334106334,1722771031518,-154.52,0.0001099,2]
[334106336,1722771031527,-154.52,0.0001099,2]
[334106339,1722771031537,-150.0,0.00010999,2]
[334106341,1722771031546,-1024.44482729,0.00011,2]
[334106344,1722771031561,-821.84153478,0.00011,2]
[334106346,1722771031573,-448.6520833,0.00011,2]
[334106348,1722771031584,-1062.65487109,0.00011,2]
[334106350,1722771031611,-34589.11790004,0.00011,2]
[334106351,1722771031622,-2210.10116617,0.00011,2]
[334106352,1722771031633,-917.36478363,0.00011,2]
[334106353,1722771031644,-1245.568807,0.00011,2]
[334106354,1722771031655,-5446.44020381,0.00011,2]
[334106355,1722771031666,-468.09747962,0.00011,2]
[334106356,1722771031685,-1699.49722843,0.00011,2]
[334106357,1722771031696,-2763.18092288,0.00011,2]
[334106358,1722771031708,-3317.59,0.00011,2]
[334106359,1722771031719,-6990.38974753,0.00011,2]
[334106360,1722771031745,-3603.53690901,0.00011,2]
[334106361,1722771031800,-21010.29633008,0.00011,2]
[334106384,1722771032088,-7.588e-05,0.00011,2]
[334106394,1722771037495,-170.17661581,0.000109,2]
[334106395,1722771037507,-190.85369923,0.000109,2]
[334106396,1722771037517,-166.96616635,0.00011,2]
[334106397,1722771037529,-12555.43099431,0.00011,2]
[334106398,1722771037541,-941.43031319,0.00011,2]
[334106399,1722771037552,-1765.0,0.00011,2]
[334106400,1722771037564,-955.97027776,0.00011,2]
[334106401,1722771037575,-4936.4916975,0.00011,2]
[334106402,1722771037586,-3879.31648734,0.00011,2]
[334106403,1722771037598,-939.09260776,0.00011,2]
[334106404,1722771037628,-4779.57044089,0.00011,2]
[334106405,1722771037691,-853.08727691,0.00011,2]
[334106406,1722771037703,-4677.82886025,0.00011,2]
[334106407,1722771037714,-880.12,0.00011,2]
[334106408,1722771037725,-4110.87971574,0.00011,2]
[334106409,1722771037755,-3295.73985537,0.00011,2]
[334106410,1722771037768,-451.57864314,0.00011,2]
[334106411,1722771037779,-19242.77518488,0.00011,2]
[334106412,1722771037817,-1857.14049247,0.00011,2]
[334106417,1722771039891,-4082.66204952,0.00011,2]
[334106418,1722771039902,-113422.32295608,0.00011,2]
[334106419,1722771040164,-300.0,0.00011,2]
[334106420,1722771040175,-663.40789983,0.00011,2]
[334106622,1722771042538,-573.86425029,0.00011,2]
[334106638,1722771042692,-5350.19999999,0.00011,2]
[334106643,1722771042743,-1127.16517976,0.00011,2]
[334106646,1722771042755,-294.38089567,0.00011,2]
[334106650,1722771042791,-979.18639745,0.00011,2]
[334106711,1722771044705,-295.464,0.00011,2]
[334106716,1722771045916,-3498.87103814,0.00011,2]
[334106717,1722771045930,-269.24,0.00011,2]
[334106718,1722771045941,-338.47566963,0.00011,2]
[334106719,1722771045975,-669.58337309,0.00011,2]
[334106725,1722771495410,1000.0,0.00024657,60]
[334106726,1722771495675,681.96056565,0.00024657,60]
[334106741,1722772055981,196.86,8.647e-05,2]
[334106745,1722772104682,9265.76765772,8.647e-05,2]
[334106746,1722772119699,426.2906037,8.647e-05,2]
[334106747,1722772137848,485.35658426,8.647e-05,2]
[334106748,1722772142040,1370.37246382,8.647e-05,2]
[334106749,1722772142364,227.61995131,8.647e-05,2]
[334106750,1722772142647,183693.66003193,8.647e-05,2]
[334106751,1722772149654,7573.35383779,8.647e-05,2]
[334106752,1722772151247,871.61874262,8.647e-05,2]
[334106753,1722772152821,1222.86024952,8.647e-05,2]
[334106754,1722772152858,411.69952763,8.647e-05,2]
[334106755,1722772176195,306.04013556,8.647e-05,2]
[334106761,1722772185508,3753.10167351,8.647e-05,2]
[334106762,1722772202677,354.37964833,8.647e-05,2]
[334106772,1722772231626,-150.0,9.888e-05,2]
[334106773,1722772231637,-629.3163,0.000104,2]
[334106774,1722772231647,-1852.42,0.00010442,2]
[334106775,1722772231658,-247.7432,0.00010481,2]
[334106776,1722772231671,-274.68198221,0.00010481,2]
[334106777,1722772231680,-18.75614652,0.00010481,2]
[334106778,1722772231700,-392.81319261,0.00010481,2]
[334106779,1722772231710,-52.28966908,0.00010498,2]
[334106780,1722772231722,-247.71033092,0.00010498,2]
[334106781,1722772231732,-2315.23243171,0.00010499,2]
[334106782,1722772231748,-824.49360169,0.00010499,2]
[334106783,1722772231786,-40252.15989838,0.00010499,2]
[334106784,1722772231796,-12804.49110925,0.000105,2]
[334106785,1722772231805,-6663.0,0.00010567,2]
[334106786,1722772231815,-2706.81,0.00010636,2]
[334106787,1722772231824,-240.0,0.00010666,2]
[334106788,1722772231834,-500.0,0.00010696,2]
[334106789,1722772231843,-277.79,0.00010755,2]
[334106790,1722772231852,-150.0,0.00010877,2]
[334106791,1722772231862,-506.21417,0.0001089,2]
[334106792,1722772231872,-150.0,0.00010899,2]
[334106793,1722772231882,-2455.43,0.00010899,2]
[334106794,1722772231892,-3695.71339542,0.000109,2]
[334106795,1722772231901,-168.24239597,0.000109,2]
[334106796,1722772231910,-170.42632731,0.000109,2]
[334106797,1722772231922,-208.14041065,0.000109,2]
[334106798,1722772231932,-2480.01680438,0.000109,2]
[334106799,1722772231942,-170.17661577,0.000109,2]
[334106801,1722772231952,-172.51040536,0.000109,2]
[334106803,1722772231962,-196.86,0.00010911,2]
[334106805,1722772231972,-2310.68,0.00010925,2]
[334106807,1722772231981,-9234.04,0.00010928,2]
[334106809,1722772231991,-2000.0,0.00010959,2]
[334106811,1722772232000,-250.0,0.00010959,2]
[334106812,1722772232010,-337.46431487,0.0001099,2]
[334106815,1722772232020,-29063.24625217,0.0001099,2]
[334106817,1722772232030,-154.09,0.0001099,2]
[334106818,1722772232040,-315670.15781489,0.00011,2]
[334106819,1722772232052,-787.72537109,0.00011,2]
[334106820,1722772232063,-753.09403611,0.00011,2]
[334106821,1722772232083,-3932.12964903,0.00011,2]
[334106830,1722772237585,-5661.48510168,0.000109,2]
[334106832,1722772237597,-506418.75621867,0.00011,2]
[334106833,1722772237661,-8700.04510248,0.00011,2]
[334106834,1722772237678,-1925.36,0.00011,2]
[334106835,1722772239444,-26988.5,0.00011,2]
[334106837,1722772239468,-2810.46426463,0.00011,2]
[334106868,1722772239783,-647.74500007,0.00011,2]
[334106869,1722772239795,-1044.795,0.00011,2]
[334106870,1722772239806,-440.96864,0.00011,2]
[334106871,1722772239817,-1121.2213578,0.00011,2]
[334106872,1722772239892,-2916111.37164252,0.00011,2]
[334106873,1722772239901,-76252.32286149,0.00011,2]
[334106874,1722772239910,-151.0,0.00011,2]
[334106875,1722772239919,-151.0,0.00011,2]
[334106876,1722772239929,-151.0,0.00011,2]
[334106877,1722772239938,-500.0,0.00011,2]
[334106878,1722772239947,-500.0,0.00011,2]
[334106879,1722772239956,-151.0,0.00011,2]
[334106880,1722772239966,-151.0,0.00011,2]
[334106881,1722772239975,-151.0,0.00011,2]
[334106882,1722772239984,-500.0,0.00011,2]
[334106883,1722772239993,-200.0,0.00011,2]
[334106884,1722772240002,-500.0,0.00011,2]
[334106885,1722772240011,-500.0,0.00011,2]
[334106886,1722772240020,-500.0,0.00011,2]
[334106887,1722772240029,-500.0,0.00011,2]
[334106888,1722772240038,-921.0,0.00011,2]
[334106889,1722772240047,-550.0,0.00011,2]
[334106890,1722772240056,-422.66,0.00011,2]
[334106891,1722772240066,-4285.64,0.00011455,2]
[334106892,1722772240074,-250.0,0.00011545,2]
[334106893,1722772240083,-1468.7,0.00011545,2]
[334106894,1722772240092,-420.0,0.00011548,2]
[334106895,1722772240101,-150.0,0.00011653,2]
[334106896,1722772240110,-3243.34342295,0.00011896,2]
[334106897,1722772240119,-255.0,0.00011945,2]
[334106898,1722772240127,-240.0,0.00012,2]
[334106899,1722772240136,-411.62,0.00012195,2]
[334106900,1722772240145,-411.62,0.00012198,2]
[334106901,1722772240154,-411.62,0.00012201,2]
[334106903,1722772240163,-411.62,0.00012204,2]
[334106904,1722772240173,-411.62,0.00012207,2]
[334106906,1722772240182,-411.62,0.00012211,2]
[334106908,1722772240192,-411.62,0.00012214,2]
[334106910,1722772240201,-411.62,0.00012217,2]
[334106912,1722772240210,-411.62,0.0001222,2]
[334106914,1722772240219,-411.62,0.00012223,2]
[334106916,1722772240228,-411.62,0.00012227,2]
[334106918,1722772240238,-411.62,0.0001223,2]
[334106919,1722772240246,-411.62,0.00012233,2]
[334106921,1722772240256,-411.62,0.00012236,2]
[334106923,1722772240265,-411.62,0.00012239,2]
[334106926,1722772240274,-411.62,0.00012243,2]
[334106928,1722772240284,-411.62,0.00012246,2]
[334106931,1722772240293,-411.62,0.00012249,2]
[334106934,1722772240302,-411.62,0.00012252,2]
[334106936,1722772240311,-411.62,0.00012256,2]
[334106939,1722772240320,-1184.1001296,0.0001254,2]
[334106942,1722772240330,-484.76607857,0.00012613,2]
[334106945,1722772240338,-531.21153845,0.00012613,2]
[334106948,1722772240347,-649.18433116,0.00012665,2]
[334106951,1722772240357,-155.0,0.00012666,2]
[334106954,1722772240366,-236.10516886,0.00012681,2]
[334106957,1722772240375,-1150.70425807,0.0001269,2]
[334106960,1722772240384,-245.0,0.00012702,2]
[334106963,1722772240394,-1000.0,0.00012879,2]
[334106966,1722772240403,-150.0,0.00012879,2]
[334106969,1722772240412,-600.0,0.00013,2]
[334106972,1722772240422,-433.0,0.0001309,2]
[334106975,1722772240431,-170.17661577,0.00013146,2]
[334106978,1722772240441,-196.86,0.00013175,2]
[334106981,1722772240450,-240.0,0.00013333,2]
[334106984,1722772240460,-696.12729063,0.00013333,2]
[334106987,1722772240470,-1635.6374964,0.00013333,2]
[334106990,1722772240479,-506.21417,0.0001339,2]
[334106993,1722772240488,-150.0,0.00013595,2]
[334106995,1722772240498,-200.0,0.00013699,2]
[334106997,1722772240506,-1784.64,0.00013699,2]
[334106999,1722772240517,-5336.7579168,0.000138,2]
[334107001,1722772240527,-331643.633055,0.000139,2]
[334107003,1722772240536,-327.36,0.00013973,2]
[334107005,1722772240545,-203.35,0.00013973,2]
[334107007,1722772240554,-1000.0,0.00014489,2]
[334107009,1722772240565,-240.0,0.00014666,2]
[334107010,1722772240574,-853.0,0.00015,3]
[334107012,1722772240583,-650.0,0.00015,2]
[334107014,1722772240592,-3799.0,0.00015,3]
[334107016,1722772240602,-170.17661577,0.00015393,2]
[334107018,1722772240611,-196.86,0.00015439,2]
[334107020,1722772240620,-150.0,0.00015538,2]
[334107022,1722772240629,-506.21418,0.0001589,2]
[334107023,1722772240638,-240.0,0.00016,2]
[334107025,1722772240647,-1000.0,0.00016098,2]
[334107027,1722772240657,-34368.45536042,0.00016711,2]
[334107028,1722772240667,-5000.0,0.00016799,2]
[334107029,1722772240676,-155.0,0.00016953,2]
[334107030,1722772240686,-1762.83385166,0.00016999,2]
[334107031,1722772240695,-3000.0,0.00017,2]
[334107032,1722772240704,-7532.32,0.000173,2]
[334107033,1722772240713,-150.0,0.0001748,2]
[334107034,1722772240722,-170.17661577,0.00017639,2]
[334107035,1722772240731,-172.51040534,0.00017647,2]
[334107036,1722772240740,-196.86,0.00017703,2]
[334107037,1722772240750,-1000.0,0.00017708,2]
[334107038,1722772240759,-506.21417,0.0001839,2]
[334107039,1722772240768,-535.57210001,0.00018898,2]
[334107040,1722772240777,-264.29868304,0.00018898,2]
[334107042,1722772240785,-718.31999166,0.00018999,2]
[334107044,1722772240795,-623.87590211,0.00018999,2]
[334107045,1722772240803,-718.31999166,0.00018999,2]
[334107047,1722772240812,-318.95541101,0.00018999,2]
[334107049,1722772240821,-493.26052295,0.00019177,2]
[334107051,1722772240830,-1000.0,0.00019318,2]
[334107053,1722772240839,-521.9105533,0.00019319,2]
[334107055,1722772240848,-521.9105533,0.00019319,2]
[334107056,1722772240857,-155.0,0.00019451,2]
[334107057,1722772240866,-3000.0,0.000197,2]
[334107058,1722772240876,-170.17661577,0.00019885,2]
[334107059,1722772240885,-196.86,0.00019967,2]
[334107060,1722772240895,-327.36,0.00020447,2]
[334107061,1722772240904,-203.35,0.00020447,2]
[334107062,1722772240913,-493.63740419,0.00020588,2]
[334107063,1722772240922,-506.21417,0.0002089,2]
[334107064,1722772240931,-225.57076581,0.00021,2]
[334107065,1722772240939,-527.033,0.00021268,2]
[334107066,1722772240948,-1075.0,0.00021268,2]
[334107067,1722772240957,-200.0,0.00021493,2]
[334107068,1722772240967,-150.41,0.00021918,2]
[334107069,1722772240976,-179.29,0.00021918,2]
[334107070,1722772240985,-795.51608512,0.0002209,2]
[334107071,1722772240994,-170.17661577,0.00022132,2]
[334107072,1722772241004,-196.86,0.00022231,2]
[334107073,1722772241013,-3000.0,0.000225,2]
[334107074,1722772241022,-7532.32,0.000226,7]
[334107075,1722772241031,-180.0,0.00023205,2]
[334107076,1722772241040,-506.21418,0.0002339,2]
[334107077,1722772241049,-150.41,0.00023744,2]
[334107078,1722772241058,-500.0,0.00024018,2]
[334107079,1722772241069,-500.0,0.00024027,2]
[334107080,1722772241078,-500.0,0.00024036,2]
[334107081,1722772241087,-500.0,0.00024045,2]
[334107082,1722772241097,-500.0,0.00024054,2]
[334107083,1722772241106,-217.85020214,0.00024055,2]
[334107084,1722772241115,-500.0,0.00024062,2]
[334107085,1722772241124,-500.0,0.00024071,2]
[334107086,1722772241133,-500.0,0.0002408,2]
[334107087,1722772241142,-500.0,0.00024089,2]
[334107088,1722772241151,-500.0,0.00024098,2]
[334107089,1722772241160,-500.0,0.00024106,2]
[334107090,1722772241169,-500.0,0.00024115,2]
[334107091,1722772241179,-500.0,0.00024124,2]
[334107092,1722772241188,-1036.40865527,0.00024164,2]
[334107093,1722772241197,-782.0,0.0002425,2]
[334107094,1722772241206,-170.17661577,0.00024378,2]
[334107095,1722772241215,-150.0,0.00024384,2]
[334107096,1722772241223,-172.51040534,0.00024394,2]
[334107097,1722772241232,-20555.633748,0.00024403,2]
[334107098,1722772241241,-475.4280342,0.00024404,2]
[334107099,1722772241250,-289.99813677,0.00024405,2]
[334107100,1722772241260,-1924.59884843,0.00024406,2]
[334107101,1722772241269,-1924.59884843,0.0002441,2]
[334107102,1722772241278,-20555.633748,0.00024411,2]
[334107103,1722772241287,-150.0,0.00024413,2]
[334107104,1722772241296,-289.99813677,0.00024413,2]
[334107105,1722772241305,-475.4280342,0.00024414,2]
[334107106,1722772241315,-475.4280342,0.00024415,2]
[334107107,1722772241324,-233.02740721,0.00024417,2]
[334107108,1722772241333,-150.0,0.00024417,2]
[334107109,1722772241343,-1500.0,0.00024418,2]
[334107110,1722772241352,-289.99813677,0.00024418,2]
[334107111,1722772241503,-233.02740721,0.00024419,2]
[334107112,1722772241513,-475.4280342,0.0002442,2]
[334107113,1722772241525,-20555.633748,0.0002442,2]
[334107114,1722772241534,-96566.24578133,0.00024422,2]
[334107115,1722772241543,-233.02740721,0.00024423,2]
[334107116,1722772241552,-384.07807383,0.00024424,2]
[334107117,1722772241562,-475.4280342,0.00024425,2]
[334107118,1722772241572,-289.99813677,0.00024426,2]
[334107119,1722772241581,-477500.9975917,0.00024427,2]
[334107120,1722772241636,-478.75263346,0.00024427,2]
[334107121,1722772241651,-3245.7,0.00024427,2]
[334107122,1722772241663,-46718.41522818,0.00024427,2]
[334107140,1722772242625,-2418.5963827,0.00012417,2]
[334107172,1722772244806,-500.57827625,0.00012417,2]
[334107175,1722772245762,-677.99999947,0.00010481,2]
[334107176,1722772245774,-6324.81784563,0.00010481,2]
[334107177,1722772245785,-531.0,0.00010481,2]
[334107178,1722772245796,-1033.05017563,0.00010481,2]
[334107179,1722772245808,-4788.38967729,0.00010481,2]
[334107180,1722772245819,-2375.70244117,0.00010481,2]
[334107181,1722772245828,-1902.20629883,0.00012417,2]
[334107182,1722772245848,-840.10414389,0.00012417,2]
[334107183,1722772245858,-125.39270999,0.00013935,2]
[334107184,1722772245870,-2089.86470127,0.00013935,2]
[334107185,1722772245882,-1293.7277763,0.00013935,2]
[334107186,1722772245893,-1636.31814337,0.00013935,2]
[334107187,1722772245914,-432.5,0.00013935,2]
[334107188,1722772245927,-83.68177074,0.00013935,2]
[334107189,1722772245937,-155.25093631,0.00018599,2]
[334107190,1722772245947,-140.77737667,0.00018599,2]
[334107191,1722772245958,-577.54261499,0.00018599,2]
[334107192,1722772245967,-217.34922423,0.00018898,2]
[334107193,1722772245979,-406.52667788,0.00018898,2]
[334107194,1722772245989,-1052.31300495,0.00024427,2]
[334107195,1722772246001,-409.14193754,0.00024427,2]
[334107196,1722772246012,-295.25514135,0.00024427,2]
[334107197,1722772246023,-3341.88331339,0.00024427,2]
[334107198,1722772246034,-4666.27831828,0.00024427,2]
[334107199,1722772246045,-967.10839149,0.00024427,2]
[334107200,1722772246056,-3407.25894926,0.00024427,2]
[334107202,1722772246067,-1757.99426359,0.00024427,2]
[334107204,1722772246079,-218194.45748863,0.00024427,2]
[334107206,1722772246091,-5074.401893,0.00024427,2]
[334107208,1722772246102,-944.79802292,0.00024427,2]
[334107210,1722772246114,-6339.61331955,0.00024427,2]
[334107213,1722772246125,-6649.48547676,0.00024427,2]
[334107215,1722772246144,-180590.90903234,0.00024427,2]
[334107217,1722772246154,-96566.24578133,0.00024429,2]
[334107219,1722772246164,-96566.24578133,0.00024429,2]
[334107221,1722772246176,-1924.59884843,0.0002443,2]
[334107223,1722772246185,-384.07807383,0.00024431,2]
[334107225,1722772246195,-20555.633748,0.00024433,2]
[334107227,1722772246204,-52892.0091479,0.00024435,2]
[334107230,1722772246223,-2479.97084612,0.00024435,2]
[334107232,1722772246234,-383.87296915,0.00024435,2]
[334107235,1722772246246,-544.68072996,0.00024435,2]
[334107237,1722772246258,-295.12565298,0.00024435,2]
[334107238,1722772246269,-501.50580398,0.00024435,2]
[334107239,1722772246288,-544.23808247,0.00024435,2]
[334107240,1722772246300,-610.27419,0.00024435,2]
[334107241,1722772246312,-2306.87815915,0.00024435,2]
[334107242,1722772246325,-846.23570001,0.00024435,2]
[334107243,1722772246336,-769.05650803,0.00024435,2]
[334107244,1722772246347,-684.36699985,0.00024435,2]
[334107250,1722772502406,1000.0,0.00024657,60]
[334107251,1722772502668,675.58,0.00024657,60]
[334107269,1722773431787,-630.8651,0.000104,2]
[334107270,1722773431796,-1641.0,0.00010499,2]
[334107271,1722773431805,-341.62662089,0.000105,2]
[334107272,1722773431817,-300.56596051,0.000105,2]
[334107273,1722773431828,-5398.9033109,0.000105,2]
[334107274,1722773431837,-550.0,0.00011,2]
[334107275,1722773431846,-174.18,0.00013,2]
[334107276,1722773431856,-3326.4452,0.000138,2]
[334107277,1722773431865,-334.56,0.00013973,2]
[334107278,1722773431874,-500.0,0.00014,2]
[334107279,1722773431883,-500.0,0.00015,2]
[334107280,1722773431892,-169.7,0.00016765,2]
[334107281,1722773431902,-3872.16,0.000168,2]
[334107282,1722773431912,-3000.0,0.00017,2]
[334107283,1722773431924,-1500.0,0.00017,2]
[334107284,1722773431933,-255.32,0.00017204,2]
[334107285,1722773431943,-1243.5,0.00017204,2]
[334107286,1722773431954,-4993.82,0.00017808,2]
[334107287,1722773431963,-546.38573207,0.0001924,2]
[334107288,1722773431973,-167.0,0.00019397,2]
[334107289,1722773431982,-535.56201513,0.00019398,2]
[334107290,1722773431993,-161.74,0.00019511,2]
[334107291,1722773432003,-3000.0,0.000197,2]
[334107292,1722773432012,-1500.0,0.000197,2]
[334107293,1722773432022,-522.52073066,0.0002,2]
[334107294,1722773432031,-334.56,0.00020447,2]
[334107295,1722773432040,-1762.83385166,0.0002083,2]
[334107296,1722773432049,-1159.13,0.00020882,2]
[334107297,1722773432059,-558.42,0.00020908,2]
[334107298,1722773432068,-150.0,0.00020955,2]
[334107299,1722773432077,-1183.85459274,0.00020999,2]
[334107300,1722773432087,-225.57076581,0.00021,2]
[334107301,1722773432096,-23890.0,0.00021007,2]
[334107302,1722773432106,-250.0,0.00021026,2]
[334107303,1722773432115,-2000.0,0.00021037,2]
[334107305,1722773432124,-395.48,0.00021069,2]
[334107306,1722773432134,-400.0,0.0002132,2]
[334107308,1722773432143,-200.0,0.00021362,2]
[334107309,1722773432152,-400.0,0.00021366,2]
[334107310,1722773432162,-9669.17,0.00021415,2]
[334107311,1722773432171,-384.2,0.00021429,2]
[334107312,1722773432181,-250.0,0.00021546,2]
[334107313,1722773432191,-172.47,0.00021737,2]
[334107314,1722773432200,-161.74,0.00021775,2]
[334107315,1722773432209,-260.58,0.00021803,2]
[334107316,1722773432219,-179.29,0.00021918,2]
[334107319,1722773432228,-150.41,0.00021918,2]
[334107322,1722773432238,-3000.0,0.000225,2]
[334107325,1722773432247,-200.0,0.00023,2]
[334107329,1722773432257,-180.0,0.00023205,2]
[334107332,1722773432266,-300.0,0.000234,8]
[334107334,1722773432275,-5000.0,0.00023451,2]
[334107336,1722773432284,-891.82758308,0.00023451,2]
[334107337,1722773432294,-265.743611,0.00023451,2]
[334107338,1722773432303,-155.0,0.00023451,2]
[334107339,1722773432312,-700.0,0.000235,8]
[334107340,1722773432322,-1100.0,0.000236,8]
[334107341,1722773432331,-1500.0,0.000237,8]
[334107342,1722773432342,-1900.0,0.000238,8]
[334107343,1722773432351,-493.26052295,0.00023873,2]
[334107344,1722773432360,-300.0,0.00023873,2]
[334107345,1722773432370,-521.9105533,0.00023873,2]
[334107346,1722773432379,-300.0,0.000239,8]
[334107348,1722773432389,-152.26,0.00023918,2]
[334107350,1722773432398,-150.0,0.00023918,2]
[334107352,1722773432408,-150.0,0.00023918,2]
[334107354,1722773432417,-150.0,0.00023918,2]
[334107356,1722773432426,-150.0,0.00023918,2]
[334107358,1722773432435,-400.0,0.00023985,2]
[334107360,1722773432445,-1064.18,0.00024035,6]
[334107361,1722773432455,-400.0,0.00024037,2]
[334107362,1722773432464,-161.74,0.00024039,2]
[334107363,1722773432473,-384.2,0.00024108,2]
[334107364,1722773432483,-639.33392,0.00024124,2]
[334107365,1722773432498,-150.0,0.00024192,2]
[334107366,1722773432507,-150.0,0.00024192,2]
[334107367,1722773432517,-150.0,0.00024192,2]
[334107368,1722773432527,-7683.47942887,0.00024243,2]
[334107369,1722773432536,-774.0,0.0002425,2]
[334107370,1722773432546,-7683.47942884,0.00024278,2]
[334107371,1722773432555,-7683.47942884,0.00024313,2]
[334107372,1722773432564,-2500.0,0.00024333,2]
[334107373,1722773432573,-158.23649469,0.00024335,2]
[334107374,1722773432582,-2647.4202,0.00024335,2]
[334107375,1722773432592,-13736.4341,0.00024335,2]
[334107376,1722773432601,-3103.9289,0.00024335,2]